bitfinex-derivatives/quotes_SOLF0:USTF0_20240924
["timestamp","ask_amount","ask_price","bid_price","bid_amount"]
[1727139029575,24.04,144.23,144.12,2.7055]
[1727139029777,24.04,144.2,144.11,83.36]
[1727139030379,24.04,144.24,144.11,86.8296]
[1727139030979,3.468,144.19,144.11,86.8296]
[1727139031680,3.4676,144.2,144.11,83.36]
[1727139032876,3.4676,144.2,144.13,3.4691]
[1727139033487,3.4678,144.19,144.11,83.36]
[1727139033880,24.04,144.24,144.13,3.469]
[1727139034081,3.4675,144.2,144.11,83.36]
[1727139034582,3.4675,144.2,144.14,3.4689]
[1727139034886,3.4679,144.19,144.11,83.36]
[1727139035470,24.04,144.24,144.11,83.36]
[1727139035988,24.04,144.24,144.1,1.3568]
[1727139036179,3.468,144.18,144.12,3.4694]
[1727139036587,3.4678,144.19,144.13,3.4692]
[1727139039287,3.39997223,144.19,144.1,1.3568]
[1727139039491,3.39997223,144.19,144.06,83.32]
[1727139039492,24.04,144.18,144.06,83.32]
[1727139039687,26.7624,144.18,144.06,84.6814]
[1727139039901,3.469,144.14,144.08,3.4702]
[1727139041091,3.54777114,144.16,144.07,3.4706]
[1727139041280,26.7624,144.18,144.07,3.4706]
[1727139041281,1.4287,144.17,144.07,3.4706]
[1727139041482,3.4694,144.13,144.07,3.4706]
[1727139041681,4.92300634,144.17,144.06,84.6814]
[1727139041992,1.3826,144.18,144.09,24.04]
[1727139042491,3.4683,144.17,144.09,24.04]
[1727139042893,3.4683,144.17,144.11,3.4695]
[1727139043998,24.04,144.21,144.09,24.04]
[1727139044191,25.4194,144.23,144.11,24.04]
[1727139044389,25.4194,144.23,144.12,1.3596]
[1727139045194,24.04,144.21,144.08,24.04]
[1727139045691,3.4684,144.17,144.11,3.4695]
[1727139046000,3.4684,144.17,144.08,24.04]
[1727139046290,1.4148,144.25,144.15,24.04]
[1727139046888,3.4668,144.23,144.18,3.4679]
[1727139047188,3.53758222,144.27,144.15,24.04]
[1727139047387,3.4672,144.22,144.17,3.4681]
[1727139048098,25.4687,144.26,144.16,1.4086]
[1727139048498,3.4673,144.21,144.16,4.877]
[1727139048891,25.4687,144.26,144.16,4.877]
[1727139049693,3.4677,144.19,144.15,3.4686]
[1727139050287,3.4676,144.2,144.15,3.4686]
[1727139050692,25.4687,144.26,144.17,3.4682]
[1727139050896,25.4687,144.26,144.13,24.04]
[1727139051394,1.4287,144.26,144.15,24.04]
[1727139051599,25.4687,144.26,144.16,1.3573]
[1727139051800,1.4365,144.25,144.16,1.3573]
[1727139052392,3.4673,144.21,144.16,1.3573]
[1727139053101,3.4677,144.2,144.16,1.3573]
[1727139053298,3.4677,144.2,144.13,24.04]
[1727139053597,3.4677,144.2,144.15,3.4685]
[1727139054304,3.4673,144.21,144.13,24.04]
[1727139054498,1.4365,144.25,144.15,24.04]
[1727139054985,3.4668,144.23,144.19,3.4677]
[1727139055699,3.4664,144.25,144.18,24.04]
[1727139055896,3.4664,144.25,144.19,1.4113]
[1727139056098,1.4412,144.28,144.19,1.4113]
[1727139056292,24.04,144.31,144.19,2.8198]
[1727139056993,24.04,144.31,144.22,3.4669]
[1727139057498,3.466,144.27,144.22,3.4669]
[1727139057704,24.04,144.31,144.22,3.4669]
[1727139057894,3.4665,144.25,144.19,2.8198]
[1727139058099,3.54139199,144.27,144.19,2.8198]
[1727139058293,24.04,144.29,144.19,2.8198]
[1727139058493,27.5286545,144.29,144.19,2.8198]
[1727139058793,24.04,144.26,144.15,24.04]
[1727139058999,24.04,144.26,144.13,24.04]
[1727139059195,3.4674,144.21,144.16,3.4684]
[1727139059699,3.4674,144.21,144.17,3.4682]
[1727139059893,3.4671,144.22,144.17,3.4682]
[1727139060099,1.3459,144.25,144.15,24.04]
[1727139060896,1.3459,144.25,144.17,3.468]
[1727139061094,3.4672,144.22,144.17,3.468]
[1727139061294,24.04,144.23,144.11,26.8316]
[1727139061497,3.4682,144.17,144.13,3.4692]
[1727139061995,3.5216206,144.21,144.13,3.4692]
[1727139062189,24.04,144.23,144.11,26.8316]
[1727139063198,24.04,144.23,144.13,3.4691]
[1727139063905,3.4681,144.18,144.13,3.4691]
[1727139064704,3.4683,144.17,144.13,3.4691]
[1727139065198,24.04,144.23,144.14,3.4689]
[1727139065507,24.04,144.23,144.11,26.8316]
[1727139065893,24.04,144.21,144.11,2.7916]
[1727139066101,27.5580862,144.21,144.11,2.7916]
[1727139066498,3.5180862,144.21,144.11,2.7916]
[1727139066709,24.04,144.23,144.11,2.7916]
[1727139067206,2.8128,144.24,144.15,3.4687]
[1727139067399,2.8128,144.24,144.12,24.04]
[1727139067601,2.8128,144.24,144.11,2.7916]
[1727139067902,3.4676,144.2,144.11,2.7916]
[1727139068103,3.4676,144.2,144.13,24.04]
[1727139068303,3.4676,144.2,144.15,3.4685]
[1727139068500,3.4676,144.2,144.13,24.04]
[1727139068709,1.3459,144.25,144.15,24.04]
[1727139068903,1.3459,144.25,144.19,3.4676]
[1727139069200,1.3459,144.25,144.11,2.7916]
[1727139069201,6.2802545,144.29,144.17,24.04]
[1727139069406,6.2802545,144.29,144.18,4.0792]
[1727139070006,3.4667,144.24,144.19,3.4677]
[1727139070602,24.04,144.28,144.18,7.5471]
[1727139071103,3.4677,144.19,144.15,3.4687]
[1727139071308,24.04,144.23,144.13,24.04]
[1727139071698,3.4673,144.21,144.16,3.4682]
[1727139071998,24.04,144.26,144.16,3.4682]
[1727139072299,1.348,144.25,144.16,3.4682]
[1727139072504,3.4676,144.2,144.16,3.4682]
[1727139072703,3.4676,144.2,144.13,24.04]
[1727139072908,3.4674,144.21,144.13,24.04]
[1727139073099,3.4674,144.21,144.16,3.4683]
[1727139073502,1.348,144.25,144.13,24.04]
[1727139073503,24.04,144.23,144.13,24.04]
[1727139073798,24.04,144.23,144.14,3.4689]
[1727139074000,3.4679,144.19,144.11,4.0731]
[1727139074197,1.348,144.25,144.12,24.04]
[1727139074604,3.4674,144.21,144.13,1.3437]
[1727139075000,3.4674,144.21,144.16,3.4683]
[1727139075399,3.4674,144.21,144.13,1.3437]
[1727139076009,3.4675,144.2,144.16,3.4683]
[1727139076413,3.4675,144.21,144.13,1.3437]
[1727139076710,1.348,144.25,144.17,3.4681]
[1727139076909,3.4674,144.21,144.17,3.4681]
[1727139077110,1.348,144.25,144.16,3.4683]
[1727139077996,1.348,144.25,144.13,1.3437]
[1727139078401,1.348,144.25,144.14,24.04]
[1727139078602,3.4664,144.25,144.17,24.04]
[1727139078806,3.4664,144.25,144.18,1.4405]
[1727139079005,3.4664,144.25,144.2,3.4675]
[1727139079420,3.4661,144.26,144.18,1.4405]
[1727139079620,100.9693845,144.3,144.19,25.417]
[1727139079800,28.82954129,144.3,144.2,1.395]
[1727139080217,28.82954129,144.3,144.21,3.4672]
[1727139080409,3.4662,144.26,144.21,3.4672]
[1727139080806,28.82954129,144.3,144.21,3.4672]
[1727139081213,3.4663,144.25,144.21,3.4672]
[1727139081513,3.4663,144.25,144.2,4.8624]
[1727139082218,3.4661,144.26,144.21,3.4672]
[1727139082611,3.4661,144.26,144.2,1.395]
[1727139082814,1.4419,144.32,144.21,24.04]
[1727139083010,1.3157,144.34,144.24,24.04]
[1727139083220,26.7778,144.38,144.28,3.4654]
[1727139083421,28.1493,144.38,144.28,3.4654]
[1727139083607,28.1493,144.38,144.27,2.8351]
[1727139083812,3.4645,144.33,144.27,6.3008]
[1727139085414,3.4645,144.33,144.28,3.4654]
[1727139085721,3.38801741,144.37,144.27,2.8351]
[1727139085919,24.04,144.35,144.27,2.8351]
[1727139086218,3.4652,144.3,144.27,2.8351]
[1727139086615,24.04,144.35,144.27,2.8351]
[1727139086922,24.04,144.32,144.21,107.28]
[1727139087124,24.04,144.32,144.22,1.3466]
[1727139087423,3.49802371,144.32,144.22,1.3466]
[1727139087716,24.04,144.35,144.24,24.04]
[1727139088029,3.4642,144.34,144.29,3.4652]
[1727139088213,4.1093,144.38,144.27,1.364]
[1727139088520,4.1093,144.38,144.28,24.04]
[1727139088521,2.7248,144.38,144.28,24.04]
[1727139088709,2.7248,144.38,144.28,25.3568]
[1727139089109,2.7248,144.38,144.29,1.3869]
[1727139089513,3.4643,144.34,144.29,4.8521]
[1727139090310,3.4644,144.33,144.29,1.3869]
[1727139091123,26.7648,144.38,144.27,1.364]
[1727139091819,1.3571,144.37,144.27,1.364]
[1727139092225,1.3571,144.37,144.28,3.4656]
[1727139093025,3.4647,144.32,144.28,3.4656]
[1727139093416,24.04,144.36,144.24,2.7955]
[1727139093624,24.04,144.33,144.24,2.7955]
[1727139094015,3.4655,144.29,144.24,2.7955]
[1727139094416,3.4655,144.29,144.24,6.2618]
[1727139094626,3.4655,144.29,144.24,2.7955]
[1727139095330,3.4651,144.3,144.24,2.7955]
[1727139096018,24.04,144.36,144.24,2.7955]
[1727139096420,3.4653,144.3,144.24,2.7955]
[1727139096619,24.04,144.36,144.24,2.7955]
[1727139096925,24.04,144.31,144.22,4.8345]
[1727139097128,24.04,144.31,144.22,1.3675]
[1727139097329,24.04,144.33,144.22,1.3675]
[1727139097723,3.4656,144.29,144.24,3.4665]
[1727139098227,3.4652,144.3,144.25,3.4661]
[1727139098528,24.04,144.33,144.25,3.4661]
[1727139098924,24.04,144.33,144.24,3.4665]
[1727139099133,24.04,144.31,144.22,1.3675]
[1727139099432,1.4419,144.3,144.22,1.3675]
[1727139099731,3.4655,144.29,144.24,3.4664]
[1727139100227,24.04,144.33,144.22,25.4075]
[1727139100430,25.4819,144.36,144.24,24.04]
[1727139101529,25.4819,144.36,144.25,3.4661]
[1727139101530,3.4653,144.3,144.25,3.4661]
[1727139101928,3.4653,144.3,144.26,3.466]
[1727139104434,1.4419,144.36,144.24,24.04]
[1727139104830,25.4819,144.36,144.24,24.04]
[1727139105028,25.4819,144.36,144.26,3.466]
[1727139105327,25.4819,144.36,144.23,24.04]
[1727139105529,1.4419,144.36,144.26,24.04]
[1727139105726,3.4645,144.33,144.28,3.4656]
[1727139106325,3.4642,144.34,144.29,3.4652]
[1727139107035,3.4639,144.35,144.3,3.465]
[1727139107438,3.4639,144.35,144.31,3.4648]
[1727139107733,3.4639,144.35,144.29,1.3249]
[1727139108434,3.4637,144.36,144.31,3.4648]
[1727139111037,3.464,144.35,144.3,3.4651]
[1727139111426,3.43097469,144.38,144.29,1.3249]
[1727139111632,24.04,144.38,144.29,1.3249]
[1727139111835,24.04,144.36,144.27,2.783]
[1727139112334,3.4646,144.32,144.27,6.2487]
[1727139112937,3.4645,144.33,144.28,3.4655]
[1727139113837,14.99,144.36,144.27,2.783]
[1727139114337,1.3132,144.35,144.27,2.783]
[1727139114733,3.4648,144.32,144.27,6.2488]
[1727139115241,3.4649,144.31,144.27,6.2488]
[1727139116136,3.4652,144.3,144.27,1.3489]
[1727139116337,27.52147184,144.34,144.24,1.3233]
[1727139116533,27.52147184,144.34,144.22,26.6952]
[1727139116534,23.98,144.32,144.22,2.7152]
[1727139116735,3.466,144.27,144.22,2.7152]
[1727139116939,23.98,144.32,144.22,2.7152]
[1727139117646,3.466,144.27,144.22,6.1821]
[1727139118342,3.4661,144.26,144.22,2.7152]
[1727139118542,23.98,144.32,144.22,1.3531]
[1727139118842,23.98,144.32,144.19,1.4414]
[1727139119031,23.98,144.32,144.2,3.4674]
[1727139119032,23.98,144.3,144.2,3.4674]
[1727139119535,3.4665,144.25,144.2,3.4674]
[1727139120046,3.51436166,144.26,144.19,4.9091]
[1727139120245,1.3847,144.29,144.19,1.4414]
[1727139120541,3.467,144.23,144.19,1.4414]
[1727139120943,3.4584421,144.25,144.15,2.8148]
[1727139121242,3.4678,144.19,144.15,6.2833]
[1727139121441,3.4678,144.19,144.15,2.8148]
[1727139121939,3.4678,144.19,144.13,23.98]
[1727139122342,3.4678,144.19,144.14,3.4688]
[1727139122853,1.3843,144.24,144.11,4.1975]
[1727139123033,23.98,144.23,144.11,4.1975]
[1727139123638,1.3843,144.24,144.15,23.98]
[1727139124041,3.4674,144.21,144.15,23.98]
[1727139124844,3.4674,144.21,144.16,3.4683]
[1727139125138,3.4678,144.19,144.13,23.98]
[1727139125348,25.3643,144.24,144.14,3.4689]
[1727139125840,1.3843,144.24,144.13,23.98]
[1727139126048,1.3121,144.28,144.17,23.98]
[1727139126236,1.3121,144.28,144.18,1.4355]
[1727139126436,1.3121,144.28,144.2,23.98]
[1727139126638,1.4473,144.3,144.2,23.98]
[1727139126940,3.4654,144.29,144.22,23.98]
[1727139127142,3.4654,144.29,144.24,3.4665]
[1727139127538,3.4656,144.28,144.24,3.4665]
[1727139128142,1.3718,144.33,144.22,23.98]
[1727139128444,1.3718,144.33,144.24,23.98]
[1727139128639,3.4652,144.3,144.25,3.4662]
[1727139129440,3.4652,144.3,144.26,3.4661]
[1727139129848,3.4649,144.31,144.26,3.4661]
[1727139130242,1.3718,144.33,144.27,3.4656]
[1727139130445,3.4646,144.32,144.27,3.4656]
[1727139130747,2.7923,144.35,144.26,3.466]
[1727139131151,2.7923,144.35,144.25,1.3247]
[1727139131341,26.7723,144.35,144.25,1.3247]
[1727139131937,30.3034111,144.35,144.25,1.3247]
[1727139132842,3.4652,144.3,144.25,4.7909]
[1727139133546,23.98,144.33,144.22,23.98]
[1727139134343,3.4658,144.28,144.23,3.4666]
[1727139134736,3.4658,144.28,144.24,3.4665]
[1727139135142,3.4658,144.27,144.2,25.4227]
[1727139135343,6.3234111,144.35,144.2,25.4227]
[1727139135547,23.98,144.32,144.2,25.4227]
[1727139135747,3.4656,144.28,144.23,3.4666]
[1727139136645,23.98,144.32,144.22,3.467]
[1727139136947,23.98,144.3,144.2,1.4427]
[1727139137350,3.4662,144.26,144.21,3.4672]
[1727139137546,3.4662,144.26,144.2,1.4427]
[1727139137748,23.98,144.3,144.2,1.4427]
[1727139137945,3.4665,144.25,144.2,4.91]
[1727139138150,23.98,144.3,144.2,1.4427]
[1727139138449,1.3385,144.31,144.13,107.22]
[1727139138450,3.4674,144.21,144.13,107.22]
[1727139138651,3.48973505,144.23,144.14,1.3306]
[1727139138844,25.3951,144.24,144.14,1.3306]
[1727139139053,3.4676,144.2,144.14,1.3306]
[1727139139553,3.5219864,144.22,144.14,1.3306]
[1727139139751,2.7437,144.23,144.15,3.4687]
[1727139140156,6.19061186,144.23,144.15,3.4687]
[1727139140348,2.7437,144.23,144.15,3.4687]
[1727139140747,6.19373469,144.23,144.15,3.4687]
[1727139140948,23.98,144.22,144.13,3.469]
[1727139141146,23.98,144.22,144.12,1.3937]
[1727139141147,3.4678,144.19,144.12,1.3937]
[1727139141357,6.19373469,144.23,144.13,23.98]
[1727139141657,6.19373469,144.23,144.13,25.4289]
[1727139142455,3.4675,144.2,144.13,25.4289]
[1727139143458,3.4675,144.2,144.15,3.4687]
[1727139145357,21.18373469,144.23,144.15,3.4687]
[1727139145660,1.4151,144.24,144.16,14.99]
[1727139145853,3.53842029,144.23,144.16,14.99]
[1727139146359,1.4151,144.24,144.16,18.4583]
[1727139146560,1.4151,144.24,144.16,3.4683]
[1727139146755,14.99,144.21,144.13,1.4489]
[1727139147255,3.468,144.19,144.14,3.4688]
[1727139147453,14.99,144.21,144.13,1.4489]
[1727139147649,14.99,144.19,144.1,16.4308]
[1727139147964,1.4151,144.24,144.14,14.99]
[1727139148157,19.90222252,144.24,144.14,14.99]
[1727139148350,1.4151,144.24,144.16,14.99]
[1727139148556,3.4668,144.24,144.18,14.99]
[1727139148765,18.44721292,144.26,144.18,14.99]
[1727139148954,3.4665,144.25,144.2,3.4673]
[1727139149155,3.45721292,144.26,144.18,14.99]
[1727139149356,2.8211,144.27,144.18,14.99]
[1727139149557,3.4667,144.24,144.19,3.4677]
[1727139150157,3.4663,144.25,144.2,3.4673]
[1727139150367,3.55379045,144.27,144.22,14.99]
[1727139150560,16.442,144.31,144.22,14.99]
[1727139150753,14.99,144.29,144.2,14.99]
[1727139151457,3.4659,144.27,144.21,3.4672]
[1727139152069,6.96555596,144.27,144.21,3.4672]
[1727139152358,3.4659,144.27,144.21,3.4672]
[1727139152756,6.93242767,144.27,144.21,3.4672]
[1727139153062,3.4659,144.27,144.21,3.4672]
[1727139154065,3.4662,144.26,144.2,18.4574]
[1727139154565,3.4662,144.26,144.2,14.99]
[1727139155365,3.4659,144.27,144.2,14.99]
[1727139156261,3.4661,144.26,144.2,14.99]
[1727139156466,14.99,144.28,144.2,14.99]
[1727139157158,3.4665,144.25,144.2,3.4675]
[1727139158665,14.99,144.22,144.15,1.3416]
[1727139159074,14.99,144.22,144.13,1.3395]
[1727139159363,14.99,144.2,144.13,4.8086]
[1727139159584,1.4521,144.24,144.13,1.3395]
[1727139159760,4.92094972,144.24,144.11,1.4277]
[1727139159982,1.4521,144.24,144.11,1.4277]
[1727139160170,3.4687,144.16,144.11,1.4277]
[1727139160361,3.50666019,144.16,144.11,1.4277]
[1727139160564,14.99,144.18,144.11,4.8972]
[1727139160770,3.4682,144.17,144.11,1.4277]
[1727139161869,3.4685,144.16,144.11,1.4277]
[1727139162367,3.4689,144.15,144.08,17.7478]
[1727139162863,14.99,144.18,144.08,17.7478]
[1727139163063,3.469,144.14,144.09,3.4701]
[1727139163269,3.48885648,144.15,144.08,17.7478]
[1727139163572,3.469,144.14,144.09,3.4701]
[1727139164862,3.4694,144.12,144.08,1.3308]
[1727139165368,3.4699,144.11,144.08,1.3308]
[1727139166167,18.46844199,144.16,144.08,1.3308]
[1727139166570,18.46844199,144.16,144.09,3.4701]
[1727139166973,3.47844199,144.16,144.08,16.3208]
[1727139167166,3.47844199,144.16,144.1,3.4698]
[1727139167475,3.4689,144.15,144.1,3.4698]
[1727139167668,16.414,144.17,144.08,19.7911]
[1727139167969,14.99,144.16,144.08,1.3308]
[1727139168169,3.4691,144.14,144.09,3.4701]
[1727139168868,16.414,144.17,144.08,16.3208]
[1727139169568,3.4685,144.16,144.08,16.3208]
[1727139169766,3.4685,144.16,144.1,14.99]
[1727139170368,3.4685,144.16,144.11,3.4696]
[1727139170972,14.99,144.21,144.12,14.99]
[1727139171362,14.99,144.21,144.12,18.4592]
[1727139171661,3.4682,144.18,144.12,18.4592]
[1727139172458,2.9084,144.23,144.11,3.4696]
[1727139172663,14.99,144.18,144.11,3.4696]
[1727139172876,3.4681,144.18,144.11,14.99]
[1727139173470,3.4681,144.18,144.13,3.4692]
[1727139173879,14.99,144.2,144.11,14.99]
[1727139174173,14.99,144.2,144.12,3.4694]
[1727139174869,14.99,144.2,144.11,14.99]
[1727139174870,14.99,144.18,144.11,3.4696]
[1727139175171,3.4686,144.16,144.11,3.4696]
[1727139177176,3.4687,144.15,144.11,3.4696]
[1727139177578,14.99,144.18,144.1,3.4698]
[1727139177782,14.99,144.18,144.09,14.99]
[1727139178073,14.99,144.18,144.1,3.4698]
[1727139178280,3.4691,144.14,144.1,3.4698]
[1727139179184,14.99,144.14,144.08,1.3308]
[1727139179679,3.4697,144.11,144.08,1.3308]
[1727139180080,6.98171392,144.15,144.11,3.4697]
[1727139180287,3.51281392,144.15,144.08,1.3308]
[1727139180677,3.4691,144.14,144.08,1.3308]
[1727139180878,3.51281392,144.15,144.08,1.3308]
[1727139181082,2.8584,144.16,144.08,1.3308]
[1727139181276,14.99,144.15,144.08,1.3308]
[1727139181577,18.42125,144.15,144.08,1.3308]
[1727139181781,3.4696,144.12,144.08,1.3308]
[1727139182184,3.4697,144.11,144.08,1.3308]
[1727139182795,14.99,144.13,144.03,14.99]
[1727139182999,14.99,144.11,144.01,18.9765]
[1727139183297,18.51534722,144.11,144.01,18.9765]
[1727139183502,14.99,144.13,144.04,14.99]
[1727139184187,3.4698,144.11,144.06,3.4708]
[1727139184689,2.8584,144.16,144.06,14.99]
[1727139185094,1.4445,144.16,144.06,14.99]
[1727139185289,6.97748056,144.15,144.1,3.4698]
[1727139185700,14.99,144.17,144.08,14.99]
[1727139185999,3.4106473,144.16,144.08,14.99]
[1727139186193,3.4688,144.15,144.1,3.4698]
[1727139187098,3.4691,144.14,144.1,3.4698]
[1727139187888,3.4694,144.13,144.09,6.2795]
[1727139188099,14.99,144.17,144.09,2.8094]
[1727139188296,14.99,144.17,144.09,17.7994]
[1727139188497,3.4684,144.17,144.09,17.7994]
[1727139188904,3.4685,144.16,144.12,3.4693]
[1727139189200,14.99,144.17,144.1,1.4041]
[1727139189403,3.4689,144.15,144.1,4.8739]
[1727139189588,14.99,144.17,144.1,4.8739]
[1727139189797,14.99,144.15,144.09,2.8094]
[1727139189999,18.52527287,144.15,144.09,2.8094]
[1727139190298,3.4693,144.13,144.09,2.8094]
[1727139190599,14.99,144.14,144.05,14.99]
[1727139190799,14.99,144.14,144.07,3.4705]
[1727139191098,14.99,144.15,144.07,14.99]
[1727139191306,3.4691,144.14,144.09,3.4701]
[1727139192200,3.4692,144.13,144.09,3.4701]
[1727139192798,3.4692,144.13,144.08,4.8925]
[1727139193102,18.4604859,144.15,144.08,4.8925]
[1727139193500,3.4696,144.12,144.08,1.4222]
[1727139193700,14.99,144.13,144.03,14.99]
[1727139194003,14.99,144.13,144.04,1.3903]
[1727139194203,3.4699,144.11,144.04,1.3903]
[1727139194614,3.4699,144.11,144.06,3.4707]
[1727139195806,18.46013864,144.12,144.05,3.471]
[1727139196113,14.99,144.12,144.05,3.471]
[1727139196502,18.41638427,144.12,144.05,3.471]
[1727139196809,14.99,144.1,144.04,1.3903]
[1727139197001,14.99,144.08,144.01,1.3147]
[1727139197405,3.471,144.06,144.01,4.7866]
[1727139197602,14.99,144.08,144.01,4.7866]
[1727139197807,14.99,144.06,143.99,1.4566]
[1727139198000,3.4715,144.04,143.99,4.929]
[1727139198507,3.4717,144.03,143.99,4.929]
[1727139199423,3.4714,144.04,143.99,4.929]
[1727139200711,3.4714,144.04,143.94,14.99]
[1727139200712,14.99,144.04,143.94,14.99]
[1727139200906,14.99,144.02,143.93,1.3231]
[1727139201105,14.99,144.0,143.93,1.3231]
[1727139201414,18.4624,144.0,143.95,3.4735]
[1727139201712,3.39598387,144.02,143.93,1.3231]
[1727139201915,17.7361,144.03,143.93,1.3231]
[1727139202300,3.49499722,144.02,143.93,1.3231]
[1727139202798,3.4721,144.01,143.96,3.4731]
[1727139203205,8.3178,144.11,143.96,14.99]
[1727139203206,14.99,144.05,143.96,14.99]
[1727139203404,3.5106309,144.04,143.96,14.99]
[1727139203805,3.4715,144.04,143.96,14.99]
[1727139204711,3.4715,144.04,143.98,3.4727]
[1727139205013,3.4716,144.03,143.98,3.4727]
[1727139205714,3.4716,144.03,143.99,3.4725]
[1727139205904,3.4714,144.04,143.99,3.4725]
[1727139206100,14.99,144.09,143.98,14.99]
[1727139206305,14.99,144.09,144.03,3.4714]
[1727139206509,3.4706,144.08,144.03,3.4714]
[1727139206911,14.99,144.09,144.03,3.4714]
[1727139207110,3.4707,144.07,144.02,3.4717]
[1727139207914,3.4711,144.06,144.01,4.9148]
[1727139208115,14.99,144.08,144.01,1.4428]
[1727139209812,3.4707,144.07,144.03,3.4716]
[1727139211922,14.99,144.06,144.01,1.4428]
[1727139212107,14.99,144.06,143.99,2.8425]
[1727139212520,14.99,144.04,143.95,14.99]
[1727139212817,3.52046595,144.03,143.95,14.99]
[1727139213013,6.99216595,144.03,143.98,3.4727]
[1727139213415,3.52046595,144.03,143.98,3.4727]
[1727139213814,3.52046595,144.03,143.97,3.473]
[1727139214124,14.99,144.04,143.94,2.7455]
[1727139214125,14.99,144.02,143.94,2.7455]
[1727139214623,3.4725,144.0,143.96,3.4731]
[1727139215721,3.4726,143.99,143.95,3.4734]
[1727139216718,18.4624,144.0,143.95,3.4734]
[1727139217020,3.4724,144.0,143.95,3.4734]
[1727139218013,14.99,144.01,143.94,2.7455]
[1727139218615,3.4728,143.99,143.94,2.7455]
[1727139219621,14.99,144.0,143.93,1.4505]
[1727139220319,3.4728,143.98,143.94,3.4736]
[1727139221122,3.4728,143.98,143.93,4.9244]
[1727139223319,3.4731,143.97,143.93,4.9244]
[1727139224621,14.99,143.98,143.89,2.8164]
[1727139224815,2.764,144.01,143.86,1.3194]
[1727139224816,14.99,143.96,143.86,1.3194]
[1727139225028,14.99,143.94,143.85,14.99]
[1727139225321,3.4742,143.93,143.88,3.4751]
[1727139225626,3.4742,143.93,143.86,1.3194]
[1727139225821,6.91886842,143.93,143.88,3.475]
[1727139226223,3.4742,143.93,143.86,1.3194]
[1727139226528,3.4742,143.93,143.89,3.4749]
[1727139226828,6.88645142,143.93,143.89,3.4749]
[1727139228128,3.4742,143.93,143.89,3.4749]
[1727139228323,3.4742,143.93,143.86,1.3194]
[1727139228324,6.97207499,143.92,143.88,3.4751]
[1727139228525,14.99,143.94,143.88,3.4751]
[1727139228921,7.00291645,143.93,143.88,3.4751]
[1727139232221,3.4739,143.94,143.89,3.4749]
[1727139232829,7.02451882,143.94,143.89,3.4749]
[1727139233630,16.3815,144.0,143.89,14.99]
[1727139233839,16.3815,144.0,143.91,14.99]
[1727139234132,3.4726,143.99,143.95,3.4734]
[1727139234332,14.99,143.98,143.9,14.99]
[1727139235939,3.4733,143.97,143.92,3.4741]
[1727139236122,3.4733,143.97,143.9,14.99]
[1727139236321,3.4733,143.96,143.93,3.474]
[1727139236525,14.99,143.98,143.93,3.474]
[1727139236721,14.99,143.98,143.88,14.99]
[1727139237438,3.4735,143.95,143.92,3.4742]
[1727139237736,2.764,144.01,143.88,14.99]
[1727139237737,14.99,143.96,143.88,14.99]
[1727139237931,14.99,143.96,143.86,16.3094]